fUST/lending_fUST_20260501
["ID","MTS","AMOUNT","RATE_DAILY","PERIOD"]
[421432686,1777642232000,-552.0,0.0001264,2]
[421432692,1777642232000,-1549.21067812,0.00014335,2]
[421432688,1777642232000,-1000.0,0.00013699,2]
[421432690,1777642232000,-5000.0,0.00014335,2]
[421432689,1777642232000,-2002.00418474,0.00014335,2]
[421432684,1777642232000,-30.86934892,0.00012389,2]
[421432691,1777642232000,-281.6786739,0.00014335,2]
[421432764,1777642240000,-943.065,0.00015107,2]
[421432762,1777642240000,-2290.08054787,0.00015007,2]
[421432763,1777642240000,-1964.102419,0.00015107,2]
[421432761,1777642240000,-196.3938586,0.00014704,2]
[421432760,1777642240000,-6167.10646324,0.00014335,2]
[421432766,1777642241000,-1794.93145315,0.00015107,2]
[421432768,1777642241000,-533.21178026,0.00015207,2]
[421432769,1777642241000,-1806.30804927,0.00015207,2]
[421432767,1777642241000,-584.07852719,0.00015207,2]
[421432777,1777642243000,94625.10770687,7.6e-05,2]
[421432824,1777642244000,-500.0,0.0001759,2]
[421432805,1777642244000,-463.0296756,0.0001759,2]
[421432803,1777642244000,-500.0,0.0001759,2]
[421432804,1777642244000,-500.0,0.0001759,2]
[421432809,1777642244000,-500.0,0.0001759,2]
[421432808,1777642244000,-500.0,0.0001759,2]
[421432810,1777642244000,-500.0,0.0001759,2]
[421432811,1777642244000,-500.0,0.0001759,2]
[421432822,1777642244000,-500.0,0.0001759,2]
[421432827,1777642244000,-500.0,0.0001759,2]
[421432820,1777642244000,-329.33127076,0.0001759,2]
[421432826,1777642244000,-217.92341978,0.0001759,2]
[421432818,1777642244000,-500.0,0.0001759,2]
[421432823,1777642244000,-500.0,0.0001759,2]
[421432802,1777642244000,-154.79500207,0.0001759,2]
[421432813,1777642244000,-500.0,0.0001759,2]
[421432799,1777642244000,-500.0,0.0001759,2]
[421432798,1777642244000,-500.0,0.0001759,2]
[421432825,1777642244000,-500.0,0.0001759,2]
[421432789,1777642244000,-1729.0093793,0.00015207,2]
[421432793,1777642244000,-264.1,0.00016547,2]
[421432790,1777642244000,-5578.02484321,0.00015307,2]
[421432794,1777642244000,-226.35224381,0.00016704,2]
[421432792,1777642244000,-5774.62392864,0.00015407,2]
[421432801,1777642244000,-500.0,0.0001759,2]
[421432791,1777642244000,-3678.1534154,0.00015307,2]
[421432796,1777642244000,-394.70136398,0.0001759,2]
[421432795,1777642244000,-6310.88645693,0.00017046,2]
[421432806,1777642244000,-500.0,0.0001759,2]
[421432797,1777642244000,-500.0,0.0001759,2]
[421432807,1777642244000,-500.0,0.0001759,2]
[421432800,1777642244000,-500.0,0.0001759,2]
[421432788,1777642244000,-585.75366434,0.00015207,2]
[421432816,1777642244000,-500.0,0.0001759,2]
[421432831,1777642244000,-500.0,0.0001759,2]
[421432840,1777642244000,-500.0,0.0001759,2]
[421432858,1777642244000,-500.0,0.0001759,2]
[421432862,1777642244000,-500.0,0.0001759,2]
[421432855,1777642244000,-500.0,0.0001759,2]
[421432863,1777642244000,-500.0,0.0001759,2]
[421432864,1777642244000,-500.0,0.0001759,2]
[421432865,1777642244000,-500.0,0.0001759,2]
[421432849,1777642244000,-500.0,0.0001759,2]
[421432866,1777642244000,-500.0,0.0001759,2]
[421432871,1777642244000,-500.0,0.0001759,2]
[421432869,1777642244000,-500.0,0.0001759,2]
[421432874,1777642244000,-36.20829845,0.0001759,2]
[421432870,1777642244000,-500.0,0.0001759,2]
[421432873,1777642244000,-519.14863066,0.0001759,2]
[421432829,1777642244000,-500.0,0.0001759,2]
[421432867,1777642244000,-500.0,0.0001759,2]
[421432851,1777642244000,-500.0,0.0001759,2]
[421432868,1777642244000,-500.0,0.0001759,2]
[421432860,1777642244000,-500.0,0.0001759,2]
[421432861,1777642244000,-500.0,0.0001759,2]
[421432830,1777642244000,-500.0,0.0001759,2]
[421432872,1777642244000,-500.0,0.0001759,2]
[421432828,1777642244000,-495.48269218,0.0001759,2]
[421432835,1777642244000,-152.25867264,0.0001759,2]
[421432838,1777642244000,-500.0,0.0001759,2]
[421432832,1777642244000,-500.0,0.0001759,2]
[421432836,1777642244000,-500.0,0.0001759,2]
[421432842,1777642244000,-423.39035899,0.0001759,2]
[421432846,1777642244000,-500.0,0.0001759,2]
[421432844,1777642244000,-500.0,0.0001759,2]
[421432847,1777642244000,-500.0,0.0001759,2]
[421432853,1777642244000,-500.0,0.0001759,2]
[421432856,1777642244000,-500.0,0.0001759,2]
[421432833,1777642244000,-500.0,0.0001759,2]
[421432891,1777642246000,-500.0,0.0001759,2]
[421432885,1777642246000,-463.79170155,0.0001759,2]
[421432887,1777642246000,-500.0,0.0001759,2]
[421432886,1777642246000,-500.0,0.0001759,2]
[421432888,1777642246000,-500.0,0.0001759,2]
[421432889,1777642246000,-500.0,0.0001759,2]
[421432899,1777642246000,-500.0,0.0001759,2]
[421432896,1777642246000,-500.0,0.0001759,2]
[421432893,1777642246000,-290.81098719,0.0001759,2]
[421432895,1777642246000,-500.0,0.0001759,2]
[421432897,1777642246000,-500.0,0.0001759,2]
[421432892,1777642246000,-500.0,0.0001759,2]
[421432900,1777642246000,-500.0,0.0001759,2]
[421432894,1777642246000,-500.0,0.0001759,2]
[421432890,1777642246000,-500.0,0.0001759,2]
[421432901,1777642246000,-500.0,0.0001759,2]
[421432898,1777642246000,-500.0,0.0001759,2]
[421432908,1777642247000,-500.0,0.0001759,2]
[421432909,1777642247000,-500.0,0.0001759,2]
[421432904,1777642247000,-500.0,0.0001759,2]
[421432910,1777642247000,-500.0,0.0001759,2]
[421432912,1777642247000,-500.0,0.0001759,2]
[421432907,1777642247000,-500.0,0.0001759,2]
[421432906,1777642247000,-500.0,0.0001759,2]
[421432903,1777642247000,-500.0,0.0001759,2]
[421432902,1777642247000,-500.0,0.0001759,2]
[421432905,1777642247000,-500.0,0.0001759,2]
[421432920,1777642247000,-500.0,0.0001759,2]
[421432911,1777642247000,-500.0,0.0001759,2]
[421432921,1777642247000,-500.0,0.0001759,2]
[421432913,1777642247000,-500.0,0.0001759,2]
[421432925,1777642247000,-144.7,0.0001759,2]
[421432926,1777642247000,-37399.17127873,0.00017594,2]
[421432918,1777642247000,-500.0,0.0001759,2]
[421432919,1777642247000,-445.79034819,0.0001759,2]
[421432924,1777642247000,-355.3,0.0001759,2]
[421432916,1777642247000,-500.0,0.0001759,2]
[421432915,1777642247000,-500.0,0.0001759,2]
[421432914,1777642247000,-500.0,0.0001759,2]
[421432923,1777642247000,-21502.20889854,0.00017594,2]
[421432922,1777642247000,-500.0,0.0001759,2]
[421432917,1777642247000,-500.0,0.0001759,2]
[421432998,1777643432000,-850.15084257,0.00011181,2]
[421433008,1777643439000,-160.48240449,0.00011581,2]
[421433005,1777643439000,-228.8912628,0.00011294,2]
[421433007,1777643439000,-5000.0,0.00011408,2]
[421433009,1777643439000,-1039.69,0.00013,2]
[421433006,1777643439000,-271.1087372,0.00011294,2]
[421433003,1777643439000,-3938.72310742,0.00011294,2]
[421433002,1777643439000,-106.87233294,0.00011181,2]
[421433012,1777643439000,-1000.0,0.00013699,2]
[421433004,1777643439000,-1061.27689258,0.00011294,2]
[421433014,1777643439000,-7912.02596803,0.00015,2]
[421433010,1777643439000,-189.36923729,0.00013581,2]
[421433021,1777643439000,-222.65152034,0.0001749,2]
[421433018,1777643439000,-1163.9227351,0.00017,2]
[421433026,1777643439000,-343.72196359,0.00017508,2]
[421433022,1777643439000,-345.82901134,0.000175,2]
[421433023,1777643439000,-323.35944676,0.00017508,2]
[421433024,1777643439000,-500.0,0.00017508,2]
[421433025,1777643439000,-500.0,0.00017508,2]
[421433020,1777643439000,-15.75764951,0.00017449,2]
[421433019,1777643439000,-151.47300658,0.00017449,2]
[421433016,1777643439000,-218.2560701,0.00015581,2]
[421433017,1777643439000,-196.4268325,0.00016036,2]
[421433053,1777643440000,-461.39343063,0.00017508,2]
[421433051,1777643440000,-500.0,0.00017508,2]
[421433048,1777643440000,-500.0,0.00017508,2]
[421433050,1777643440000,-500.0,0.00017508,2]
[421433047,1777643440000,-500.0,0.00017508,2]
[421433052,1777643440000,-500.0,0.00017508,2]
[421433049,1777643440000,-500.0,0.00017508,2]
[421433054,1777643440000,-500.0,0.00017508,2]
[421433059,1777643440000,-500.0,0.00017508,2]
[421433055,1777643440000,-500.0,0.00017508,2]
[421433057,1777643440000,-500.0,0.00017508,2]
[421433058,1777643440000,-500.0,0.00017508,2]
[421433060,1777643440000,-500.0,0.00017508,2]
[421433061,1777643440000,-500.0,0.00017508,2]
[421433062,1777643440000,-500.0,0.00017508,2]
[421433045,1777643440000,-500.0,0.00017508,2]
[421433056,1777643440000,-158.07340806,0.00017508,2]
[421433046,1777643440000,-168.7942923,0.00017508,2]
[421433027,1777643440000,-156.27803641,0.00017508,2]
[421433043,1777643440000,-500.0,0.00017508,2]
[421433028,1777643440000,-508.35650145,0.00017508,2]
[421433030,1777643440000,-211.65728935,0.00017508,2]
[421433032,1777643440000,-646.92416837,0.00017508,2]
[421433031,1777643440000,-500.0,0.00017508,2]
[421433063,1777643440000,-500.0,0.00017508,2]
[421433029,1777643440000,-288.34271065,0.00017508,2]
[421433033,1777643440000,-500.0,0.00017508,2]
[421433044,1777643440000,-500.0,0.00017508,2]
[421433038,1777643440000,-500.0,0.00017508,2]
[421433034,1777643440000,-500.0,0.00017508,2]
[421433042,1777643440000,-500.0,0.00017508,2]
[421433037,1777643440000,-500.0,0.00017508,2]
[421433035,1777643440000,-500.0,0.00017508,2]
[421433041,1777643440000,-500.0,0.00017508,2]
[421433036,1777643440000,-500.0,0.00017508,2]
[421433039,1777643440000,-388.3869658,0.00017508,2]
[421433040,1777643440000,-500.0,0.00017508,2]
[421433064,1777643440000,-550.0,0.00017508,2]
[421433099,1777643440000,-198.0,0.0001889,2]
[421433066,1777643440000,-2463.48621564,0.00017509,2]
[421433092,1777643440000,-456.0872352,0.00018475,2]
[421433087,1777643440000,-150.0,0.00018354,2]
[421433088,1777643440000,-205.695374,0.00018475,2]
[421433091,1777643440000,-151.0,0.00018475,2]
[421433093,1777643440000,-456.0872351,0.00018489,2]
[421433095,1777643440000,-316.70027982,0.00018794,2]
[421433094,1777643440000,-1902.0,0.000186,2]
[421433089,1777643440000,-456.0872351,0.00018475,2]
[421433096,1777643440000,-181.16212958,0.00018794,2]
[421433098,1777643440000,-151.0,0.00018809,2]
[421433100,1777643440000,-2521.91435311,0.00018986,10]
[421433101,1777643440000,-1449.38277013,0.0001899,2]
[421433102,1777643440000,-1258.43671265,0.0001899,2]
[421433103,1777643440000,-1019.05201729,0.0001899,2]
[421433104,1777643440000,-523.75236559,0.0001899,2]
[421433065,1777643440000,-104301.77811835,0.00017509,2]
[421433097,1777643440000,-156.375,0.000188,2]
[421433086,1777643440000,-150.0,0.00018354,2]
[421433090,1777643440000,-325.5033173,0.00018475,2]
[421433084,1777643440000,-283.76630704,0.00018219,2]
[421433067,1777643440000,-2536.51378436,0.00017509,2]
[421433070,1777643440000,-3390.77731292,0.00017509,2]
[421433069,1777643440000,-2613.99922809,0.00017509,2]
[421433068,1777643440000,-7909.01872154,0.00017509,2]
[421433071,1777643440000,-45.11419695,0.00017509,2]
[421433072,1777643440000,-375.45460391,0.0001751,2]
[421433085,1777643440000,-160.0,0.00018238,3]
[421433074,1777643440000,-347.3596246,0.0001759,2]
[421433075,1777643440000,-1389.43849839,0.0001759,2]
[421433073,1777643440000,-247.14290291,0.00017581,2]
[421433077,1777643440000,-3126.23662138,0.0001759,2]
[421433078,1777643440000,-500.0,0.00017609,2]
[421433079,1777643440000,-20214.64829562,0.0001771,2]
[421433080,1777643440000,-11181.7660873,0.00017817,21]
[421433081,1777643440000,-150.86516468,0.00018,2]
[421433082,1777643440000,-600.0,0.00018063,2]
[421433083,1777643440000,-155.0,0.00018096,2]
[421433076,1777643440000,-242.368,0.0001759,2]
[421433120,1777643444000,-3000.0,0.00021918,120]
[421433127,1777643448000,-72852.76215024,0.0001899,2]
[421433123,1777643448000,-185.0,0.00018354,2]
[421433125,1777643448000,-392.29564946,0.0001861,2]
[421433126,1777643448000,-331.90827293,0.0001861,2]
[421433124,1777643448000,-497.8624094,0.0001861,2]
[421433129,1777643448000,-46204.40261382,0.0001899,2]
[421433135,1777643448000,-285.0,0.0001899,2]
[421433130,1777643448000,-39923.21132233,0.0001899,2]
[421433131,1777643448000,-813.5,0.0001899,2]
[421433132,1777643448000,-1179.67946753,0.0001899,2]
[421433128,1777643448000,-276.5150003,0.0001899,2]
[421433134,1777643448000,-1650.42149024,0.0001899,2]
[421433133,1777643448000,-1605.81181067,0.0001899,2]
[421433137,1777643449000,-2761.61458433,0.0001899,2]
[421433139,1777643449000,-791.04592524,0.00018995,2]
[421433138,1777643449000,-2590.88541404,0.00018995,2]
[421433136,1777643449000,-468.942,0.0001899,2]
[421433270,1777643647000,-117.0,0.00021918,120]
[421433269,1777643647000,-3883.0,0.00021918,120]
[421433280,1777644093000,-1645.36692601,0.00012897,2]
[421433284,1777644454000,10000.0,0.00021918,120]
[421433285,1777644513000,4400.0,0.00021918,120]
[421433320,1777644631000,-276.36,0.00012142,2]
[421433361,1777644632000,-61.483633,0.00012142,2]
[421433362,1777644632000,-935.83858937,0.00012265,2]
[421433381,1777644633000,-5552.19623956,0.00016144,2]
[421433388,1777644633000,-280.89248047,0.000173,2]
[421433387,1777644633000,-272.39449382,0.000173,2]
[421433386,1777644633000,-257.86426935,0.000173,2]
[421433383,1777644633000,-5016.74592153,0.00016994,2]
[421433384,1777644633000,-222.65152033,0.00017245,2]
[421433380,1777644633000,-150.0,0.00016,2]
[421433385,1777644633000,-190.89923437,0.000173,2]
[421433374,1777644633000,-1000.00535409,0.0001239,2]
[421433378,1777644633000,-5122.81940656,0.00014575,2]
[421433379,1777644633000,-177.0,0.00014704,2]
[421433375,1777644633000,-1000.0,0.00013699,2]
[421433377,1777644633000,-155.31193318,0.00014175,2]
[421433376,1777644633000,-1841.73358998,0.00014175,2]
[421433372,1777644633000,-1428.50066713,0.00012265,2]
[421433373,1777644633000,-2635.6607435,0.00012265,2]
[421433390,1777644633000,-157.36307472,0.000173,2]
[421433382,1777644633000,-204.0,0.00016704,2]
[421433392,1777644633000,-2403.82489671,0.00017307,2]
[421433405,1777644633000,-500.0,0.00017308,2]
[421433391,1777644633000,-4063.17510329,0.00017307,2]
[421433389,1777644633000,-152.77650148,0.000173,2]
[421433410,1777644633000,-1078.08916142,0.00017309,2]
[421433409,1777644633000,-102974.88904846,0.00017309,2]
[421433407,1777644633000,-118.89984038,0.00017308,2]
[421433406,1777644633000,-500.0,0.00017308,2]
[421433402,1777644633000,-500.0,0.00017308,2]
[421433404,1777644633000,-500.0,0.00017308,2]
[421433403,1777644633000,-500.0,0.00017308,2]
[421433408,1777644633000,-480.6116657,0.00017308,2]
[421433401,1777644633000,-500.0,0.00017308,2]
[421433399,1777644633000,-500.0,0.00017308,2]
[421433398,1777644633000,-500.0,0.00017308,2]
[421433397,1777644633000,-555.84955101,0.00017308,2]
[421433396,1777644633000,-500.0,0.00017308,2]
[421433395,1777644633000,-226.35161273,0.00017308,2]
[421433400,1777644633000,-500.0,0.00017308,2]
[421433394,1777644633000,-440.15482563,0.00017308,2]
[421433393,1777644633000,-628.67482312,0.00017308,2]
[421433443,1777644638000,-151.0,0.00018475,2]
[421433438,1777644638000,-200.0,0.0001796,2]
[421433439,1777644638000,-185.0,0.00018083,2]
[421433441,1777644638000,-4148.50843368,0.00018304,2]
[421433440,1777644638000,-6056.69770664,0.00018289,2]
[421433444,1777644638000,-151.0,0.00018489,2]
[421433445,1777644638000,-456.0872351,0.00018489,2]
[421433446,1777644638000,-456.1217259,0.00018489,2]
[421433448,1777644638000,-455.9805711,0.00018555,2]
[421433460,1777644638000,-459.0,0.00019,2]
[421433449,1777644638000,-347.36327974,0.00018615,2]
[421433450,1777644638000,-46112.5110288,0.0001862,2]
[421433442,1777644638000,-200.0,0.0001847,2]
[421433451,1777644638000,-151.26025761,0.00018689,2]
[421433447,1777644638000,-456.0872351,0.00018489,2]
[421433437,1777644638000,-329.54462729,0.00017888,2]
[421433425,1777644638000,-416205.67078747,0.00017309,2]
[421433430,1777644638000,-4148.50843368,0.0001748,2]
[421433452,1777644638000,-257.0,0.000188,2]
[421433420,1777644638000,-200.0,0.00016942,2]
[421433421,1777644638000,-121412.03431774,0.00017309,2]
[421433423,1777644638000,-65734.33802702,0.00017309,2]
[421433422,1777644638000,-885971.85045641,0.00017309,2]
[421433424,1777644638000,-106623.12820148,0.00017309,2]
[421433428,1777644638000,-2150.738,0.00017345,2]
[421433427,1777644638000,-537.6845,0.00017345,2]
[421433426,1777644638000,-150.0,0.00017327,2]
[421433429,1777644638000,-200.0,0.00017451,2]
[421433431,1777644638000,-456.1217259,0.00017653,2]
[421433432,1777644638000,-151.0,0.00017667,2]
[421433435,1777644638000,-588.42118683,0.00017888,2]
[421433434,1777644638000,-600.0,0.00017859,2]
[421433433,1777644638000,-459.1224322,0.00017667,2]
[421433436,1777644638000,-589.05261643,0.00017888,2]
[421433459,1777644638000,-1000.0,0.00019,2]
[421433486,1777644638000,-220.33904543,0.00019173,2]
[421433453,1777644638000,-77069.8071726,0.00018849,10]
[421433485,1777644638000,-501.29634926,0.00019173,2]
[421433476,1777644638000,-500.0,0.00019173,2]
[421433481,1777644638000,-500.0,0.00019173,2]
[421433479,1777644638000,-500.0,0.00019173,2]
[421433478,1777644638000,-500.0,0.00019173,2]
[421433482,1777644638000,-208.48855878,0.00019173,2]
[421433480,1777644638000,-500.0,0.00019173,2]
[421433477,1777644638000,-162.68994118,0.00019173,2]
[421433484,1777644638000,-500.0,0.00019173,2]
[421433487,1777644638000,-608.74327937,0.00019173,2]
[421433488,1777644638000,-500.0,0.00019173,2]
[421433490,1777644638000,-217.05704633,0.00019173,2]
[421433489,1777644638000,-500.0,0.00019173,2]
[421433491,1777644638000,-500.0,0.00019173,2]
[421433457,1777644638000,-280.15912496,0.00018993,2]
[421433475,1777644638000,-150.0,0.00019173,2]
[421433474,1777644638000,-500.0,0.00019173,2]
[421433483,1777644638000,-265.80865683,0.00019173,2]
[421433468,1777644638000,-618.92378436,0.00019093,2]
[421433455,1777644638000,-432.2997912,0.0001892,2]
[421433473,1777644638000,-500.0,0.00019173,2]
[421433458,1777644638000,-144747.0,0.00019,2]
[421433454,1777644638000,-198.0,0.0001889,2]
[421433456,1777644638000,-16121.6593181,0.0001892,2]
[421433462,1777644638000,-172.0,0.00019,2]
[421433463,1777644638000,-3202.0,0.00019,2]
[421433467,1777644638000,-269.4931174,0.00019081,30]
[421433461,1777644638000,-747.0,0.00019,2]
[421433469,1777644638000,-21719.94134976,0.000191,2]
[421433464,1777644638000,-151.0,0.00019008,5]
[421433465,1777644638000,-483.4186998,0.00019081,30]
[421433466,1777644638000,-155.0472122,0.00019081,30]
[421433470,1777644638000,-4148.50843368,0.00019129,2]
[421433472,1777644638000,-500.0,0.00019173,2]
[421433471,1777644638000,-500.0,0.00019173,2]
[421433537,1777644639000,-549.63779841,0.00019178,2]
[421433516,1777644639000,-500.0,0.00019178,2]
[421433517,1777644639000,-633.99,0.00019178,2]
[421433520,1777644639000,-500.0,0.00019178,2]
[421433519,1777644639000,-788.9,0.00019178,2]
[421433518,1777644639000,-500.0,0.00019178,2]
[421433522,1777644639000,-914.34,0.00019178,2]
[421433515,1777644639000,-2587.51,0.00019178,2]
[421433521,1777644639000,-500.0,0.00019178,2]
[421433531,1777644639000,-500.0,0.00019178,2]
[421433526,1777644639000,-811.23,0.00019178,2]
[421433527,1777644639000,-528.62,0.00019178,2]
[421433529,1777644639000,-433.05297306,0.00019178,2]
[421433528,1777644639000,-794.7,0.00019178,2]
[421433530,1777644639000,-523.69,0.00019178,2]
[421433539,1777644639000,-500.0,0.00019178,2]
[421433532,1777644639000,-500.0,0.00019178,2]
[421433511,1777644639000,-500.0,0.00019178,2]
[421433524,1777644639000,-336.96100275,0.00019178,2]
[421433514,1777644639000,-2541.26,0.00019178,2]
[421433497,1777644639000,-500.0,0.00019173,2]
[421433513,1777644639000,-216.41410921,0.00019178,3]
[421433498,1777644639000,-500.0,0.00019173,2]
[421433493,1777644639000,-500.0,0.00019173,2]
[421433492,1777644639000,-500.0,0.00019173,2]
[421433495,1777644639000,-210.28735918,0.00019173,2]
[421433496,1777644639000,-500.0,0.00019173,2]
[421433494,1777644639000,-500.0,0.00019173,2]
[421433499,1777644639000,-160.91482689,0.00019173,2]
[421433500,1777644639000,-500.0,0.00019173,2]
[421433512,1777644639000,-500.0,0.00019178,2]
[421433501,1777644639000,-534.14663149,0.00019173,2]
[421433509,1777644639000,-2213.14404,0.00019178,2]
[421433510,1777644639000,-500.0,0.00019178,2]
[421433502,1777644639000,-541.13579129,0.00019173,2]
[421433504,1777644639000,-4177.0289,0.00019178,2]
[421433508,1777644639000,-15261.461104,0.00019178,2]
[421433505,1777644639000,-970.208,0.00019178,2]
[421433507,1777644639000,-1941.0581,0.00019178,2]
[421433506,1777644639000,-2025.2169,0.00019178,2]
[421433503,1777644639000,-500.0,0.00019173,2]
[421433535,1777644639000,-1782.2,0.00019178,2]
[421433548,1777644639000,-509.71,0.00019178,2]
[421433538,1777644639000,-500.0,0.00019178,2]
[421433570,1777644639000,-500.0,0.00019178,2]
[421433567,1777644639000,-593.85,0.00019178,2]
[421433566,1777644639000,-500.0,0.00019178,2]
[421433571,1777644639000,-500.0,0.00019178,2]
[421433564,1777644639000,-500.0,0.00019178,2]
[421433572,1777644639000,-500.0,0.00019178,2]
[421433577,1777644639000,-602.35,0.00019178,2]
[421433579,1777644639000,-298.55392382,0.00019178,2]
[421433569,1777644639000,-500.0,0.00019178,2]
[421433578,1777644639000,-500.0,0.00019178,2]
[421433573,1777644639000,-843.94,0.00019178,2]
[421433576,1777644639000,-500.0,0.00019178,2]
[421433580,1777644639000,-1643.23,0.00019178,2]
[421433581,1777644639000,-500.0,0.00019178,2]
[421433583,1777644639000,-500.0,0.00019178,2]
[421433582,1777644639000,-500.0,0.00019178,2]
[421433584,1777644639000,-500.0,0.00019178,2]
[421433533,1777644639000,-500.0,0.00019178,2]
[421433574,1777644639000,-500.0,0.00019178,2]
[421433568,1777644639000,-2257.64,0.00019178,2]
[421433575,1777644639000,-500.0,0.00019178,2]
[421433563,1777644639000,-500.0,0.00019178,2]
[421433565,1777644639000,-563.05,0.00019178,2]
[421433536,1777644639000,-500.0,0.00019178,2]
[421433534,1777644639000,-500.0,0.00019178,2]
[421433540,1777644639000,-500.0,0.00019178,2]
[421433541,1777644639000,-500.0,0.00019178,2]
[421433544,1777644639000,-500.0,0.00019178,2]
[421433542,1777644639000,-500.0,0.00019178,2]
[421433546,1777644639000,-500.0,0.00019178,2]
[421433545,1777644639000,-500.0,0.00019178,2]
[421433543,1777644639000,-500.0,0.00019178,2]
[421433555,1777644639000,-838.34,0.00019178,2]
[421433550,1777644639000,-315.59735397,0.00019178,2]
[421433560,1777644639000,-500.0,0.00019178,2]
[421433549,1777644639000,-596.69,0.00019178,2]
[421433551,1777644639000,-500.0,0.00019178,2]
[421433553,1777644639000,-500.0,0.00019178,2]
[421433558,1777644639000,-500.0,0.00019178,2]
[421433552,1777644639000,-1265.08,0.00019178,2]
[421433547,1777644639000,-500.0,0.00019178,2]
[421433611,1777644640000,-500.0,0.00019178,2]
[421433616,1777644640000,-1578.21,0.00019178,2]
[421433615,1777644640000,-779.23,0.00019178,2]
[421433610,1777644640000,-575.67,0.00019178,2]
[421433613,1777644640000,-500.0,0.00019178,2]
[421433608,1777644640000,-508.82,0.00019178,2]
[421433609,1777644640000,-500.0,0.00019178,2]
[421433618,1777644640000,-500.0,0.00019178,2]
[421433614,1777644640000,-500.0,0.00019178,2]
[421433624,1777644640000,-500.0,0.00019178,2]
[421433631,1777644640000,-500.0,0.00019178,2]
[421433620,1777644640000,-2648.79,0.00019178,2]
[421433626,1777644640000,-500.0,0.00019178,2]
[421433623,1777644640000,-500.0,0.00019178,2]
[421433622,1777644640000,-500.0,0.00019178,2]
[421433627,1777644640000,-500.0,0.00019178,2]
[421433634,1777644640000,-1413.64,0.00019178,2]
[421433635,1777644640000,-500.0,0.00019178,2]
[421433628,1777644640000,-500.0,0.00019178,2]
[421433612,1777644640000,-338.76082949,0.00019178,2]
[421433625,1777644640000,-690.63,0.00019178,2]
[421433599,1777644640000,-862.15,0.00019178,2]
[421433585,1777644640000,-500.0,0.00019178,2]
[421433602,1777644640000,-500.0,0.00019178,2]
[421433587,1777644640000,-500.0,0.00019178,2]
[421433630,1777644640000,-500.0,0.00019178,2]
[421433586,1777644640000,-1046.94,0.00019178,2]
[421433588,1777644640000,-531.21,0.00019178,2]
[421433589,1777644640000,-500.0,0.00019178,2]
[421433590,1777644640000,-500.0,0.00019178,2]
[421433592,1777644640000,-500.0,0.00019178,2]
[421433594,1777644640000,-671.81,0.00019178,2]
[421433596,1777644640000,-500.0,0.00019178,2]
[421433606,1777644640000,-500.0,0.00019178,2]
[421433591,1777644640000,-649.96,0.00019178,2]
[421433597,1777644640000,-1088.27,0.00019178,2]
[421433598,1777644640000,-500.0,0.00019178,2]
[421433595,1777644640000,-1202.39,0.00019178,2]
[421433600,1777644640000,-501.36190095,0.00019178,2]
[421433601,1777644640000,-616.35,0.00019178,2]
[421433604,1777644640000,-473.21388405,0.00019178,2]
[421433603,1777644640000,-500.0,0.00019178,2]
[421433605,1777644640000,-555.5,0.00019178,2]
[421433607,1777644640000,-551.83043867,0.00019178,2]
[421433593,1777644640000,-901.38,0.00019178,2]
[421433629,1777644640000,-500.0,0.00019178,2]
[421433619,1777644640000,-500.0,0.00019178,2]
[421433632,1777644640000,-1255.36,0.00019178,2]
[421433661,1777644640000,-500.0,0.00019178,2]